[Event "Late-Titled-Tuesday-Blitz-March-26-2024"]
[Site "Chess.com"]
[Date "2024.03.26"]
[Round "9"]
[White "djano"]
[Black "HajiyevKanan"]
[Result "0-1"]
[WhiteElo "2670"]
[BlackElo "2571"]
[TimeControl "180+1"]
[EndTime "15:45:03 PDT"]
[Termination "HajiyevKanan won by checkmate"]

1. e4 {[%clk 0:03:00.9]} 1... c6 {[%clk 0:02:59.8]} 2. b3 {[%clk 0:02:58.3]}
2... d5 {[%clk 0:03:00.7]} 3. Bb2 {[%clk 0:02:58.4]} 3... dxe4 {[%clk
0:03:01.3]} 4. Nc3 {[%clk 0:02:58]} 4... Nf6 {[%clk 0:03:02]} 5. Qe2 {[%clk
0:02:57.9]} 5... Bg4 {[%clk 0:03:02.1]} 6. Qe3 {[%clk 0:02:57.3]} 6... Qb6
{[%clk 0:02:59.8]} 7. Qg3 {[%clk 0:02:48.2]} 7... Nbd7 {[%clk 0:02:52.1]} 8. h3
{[%clk 0:02:43.7]} 8... Bh5 {[%clk 0:02:52.4]} 9. Be2 {[%clk 0:02:33.9]} 9...
Bg6 {[%clk 0:02:48.3]} 10. O-O-O {[%clk 0:02:31.1]} 10... e6 {[%clk 0:02:40.8]}
11. f3 {[%clk 0:02:22.3]} 11... Bb4 {[%clk 0:02:28.9]} 12. fxe4 {[%clk 0:02:00]}
12... Bxc3 {[%clk 0:02:25.3]} 13. Qxc3 {[%clk 0:01:54.4]} 13... Bxe4 {[%clk
0:02:23.6]} 14. Nf3 {[%clk 0:01:50.2]} 14... O-O-O {[%clk 0:02:21.6]} 15. Rhf1
{[%clk 0:01:42.9]} 15... Rhg8 {[%clk 0:02:18.4]} 16. Ng5 {[%clk 0:01:34.9]}
16... Bg6 {[%clk 0:02:18.6]} 17. Qg3 {[%clk 0:01:23.4]} 17... Qa5 {[%clk
0:01:54.4]} 18. Kb1 {[%clk 0:01:14]} 18... Nc5 {[%clk 0:01:44.1]} 19. d3 {[%clk
0:01:01]} 19... Na6 {[%clk 0:01:34.3]} 20. a3 {[%clk 0:00:55.4]} 20... Nc7
{[%clk 0:01:32.4]} 21. b4 {[%clk 0:00:45.8]} 21... Qa4 {[%clk 0:01:26.4]} 22.
Qf4 {[%clk 0:00:26.3]} 22... Nb5 {[%clk 0:01:17.5]} 23. Qc1 {[%clk 0:00:26.4]}
23... Nd4 {[%clk 0:01:05.9]} 24. Rf2 {[%clk 0:00:26.8]} 24... h6 {[%clk
0:00:56.2]} 25. Nf3 {[%clk 0:00:26.5]} 25... Nxe2 {[%clk 0:00:52.7]} 26. Rxe2
{[%clk 0:00:27.4]} 26... Nd5 {[%clk 0:00:53.2]} 27. Ne5 {[%clk 0:00:23.8]} 27...
Rde8 {[%clk 0:00:32.5]} 28. Nxg6 {[%clk 0:00:23.6]} 28... fxg6 {[%clk
0:00:33.4]} 29. Rde1 {[%clk 0:00:24.1]} 29... Nc7 {[%clk 0:00:30.1]} 30. Qf4
{[%clk 0:00:22.2]} 30... Nb5 {[%clk 0:00:27.9]} 31. Qc1 {[%clk 0:00:20.3]} 31...
Nc7 {[%clk 0:00:26.3]} 32. Re5 {[%clk 0:00:20.4]} 32... Nd5 {[%clk 0:00:21.1]}
33. c4 {[%clk 0:00:19.6]} 33... Nb6 {[%clk 0:00:18.7]} 34. Ra5 {[%clk
0:00:19.7]} 34... Qb3 {[%clk 0:00:19.2]} 35. Rxa7 {[%clk 0:00:18.4]} 35... Qxd3+
{[%clk 0:00:18.5]} 36. Qc2 {[%clk 0:00:15.4]} 36... Qxc2+ {[%clk 0:00:18.1]} 37.
Kxc2 {[%clk 0:00:16.3]} 37... Nxc4 {[%clk 0:00:18.9]} 38. Bd4 {[%clk 0:00:15.5]}
38... Kb8 {[%clk 0:00:14.5]} 39. Ra4 {[%clk 0:00:11.8]} 39... e5 {[%clk
0:00:14.2]} 40. Bc5 {[%clk 0:00:11.4]} 40... Rd8 {[%clk 0:00:13.8]} 41. Kc3
{[%clk 0:00:11.4]} 41... b5 {[%clk 0:00:14.2]} 42. Ra6 {[%clk 0:00:10.6]} 42...
Rd7 {[%clk 0:00:11.7]} 43. Rf1 {[%clk 0:00:08.7]} 43... Rgd8 {[%clk 0:00:11.8]}
44. Rf3 {[%clk 0:00:09.3]} 44... e4 {[%clk 0:00:11.1]} 45. Rg3 {[%clk 0:00:09]}
45... e3 {[%clk 0:00:11.6]} 46. Rxc6 {[%clk 0:00:06.5]} 46... Rd3+ {[%clk
0:00:09.4]} 47. Kc2 {[%clk 0:00:06.5]} 47... Rd2+ {[%clk 0:00:09.9]} 48. Kc1
{[%clk 0:00:07]} 48... Rd1+ {[%clk 0:00:10.5]} 49. Kc2 {[%clk 0:00:07.6]} 49...
R8d2+ {[%clk 0:00:10]} 50. Kc3 {[%clk 0:00:08.2]} 50... Rc1+ {[%clk 0:00:09.6]}
51. Kb3 {[%clk 0:00:08.8]} 51... Rb2# {[%clk 0:00:09.9]} 0-1

[Event "Late-Titled-Tuesday-Blitz-March-26-2024"]
[Site "Chess.com"]
[Date "2024.03.26"]
[Round "9"]
[White "N_I_Chess"]
[Black "ccccvhhhj"]
[Result "1-0"]
[WhiteElo "2344"]
[BlackElo "2429"]
[TimeControl "180+1"]
[EndTime "15:45:06 PDT"]
[Termination "N_I_Chess won on time"]

1. d4 {[%clk 0:02:54.9]} 1... e5 {[%clk 0:02:59.9]} 2. dxe5 {[%clk 0:02:54.4]}
2... d6 {[%clk 0:03:00.5]} 3. Nf3 {[%clk 0:02:43.7]} 3... Bg4 {[%clk 0:03:00.1]}
4. Nc3 {[%clk 0:02:41.6]} 4... Nc6 {[%clk 0:03:00.2]} 5. Bg5 {[%clk 0:02:38.6]}
5... Qd7 {[%clk 0:02:59.2]} 6. e4 {[%clk 0:02:31.7]} 6... h6 {[%clk 0:02:41.1]}
7. Bh4 {[%clk 0:02:28.1]} 7... g5 {[%clk 0:02:40.7]} 8. Bg3 {[%clk 0:02:28.1]}
8... O-O-O {[%clk 0:02:41.4]} 9. exd6 {[%clk 0:02:25.9]} 9... Bxd6 {[%clk
0:02:42.3]} 10. Bxd6 {[%clk 0:02:25.1]} 10... Qe8 {[%clk 0:02:42.1]} 11. Bd3
{[%clk 0:02:14.4]} 11... Rxd6 {[%clk 0:02:41.4]} 12. h3 {[%clk 0:02:07.7]} 12...
Bh5 {[%clk 0:02:39.8]} 13. Qc1 {[%clk 0:01:57.5]} 13... f5 {[%clk 0:02:17.1]}
14. Nb5 {[%clk 0:01:39.6]} 14... Re6 {[%clk 0:01:20.1]} 15. Nd2 {[%clk
0:01:34.5]} 15... fxe4 {[%clk 0:01:13.2]} 16. Bc4 {[%clk 0:01:32.5]} 16... Re5
{[%clk 0:00:50.8]} 17. O-O {[%clk 0:01:30.6]} 17... Nf6 {[%clk 0:00:47.2]} 18.
Nc3 {[%clk 0:01:20.8]} 18... g4 {[%clk 0:00:44.4]} 19. h4 {[%clk 0:01:18.6]}
19... g3 {[%clk 0:00:42.4]} 20. fxg3 {[%clk 0:01:15.9]} 20... Ng4 {[%clk
0:00:40.9]} 21. Qe1 {[%clk 0:01:10.7]} 21... e3 {[%clk 0:00:39.6]} 22. Nf3
{[%clk 0:01:10.5]} 22... Re7 {[%clk 0:00:29.8]} 23. Nd5 {[%clk 0:00:58.2]} 23...
Rd7 {[%clk 0:00:30.1]} 24. Qe2 {[%clk 0:00:51.3]} 24... Rg8 {[%clk 0:00:21.9]}
25. Rae1 {[%clk 0:00:26.5]} 25... Qe4 {[%clk 0:00:21.2]} 26. Nxe3 {[%clk
0:00:20.5]} 26... Nxe3 {[%clk 0:00:20.2]} 27. Bxg8 {[%clk 0:00:17.4]} 27... Re7
{[%clk 0:00:19.2]} 28. Bb3 {[%clk 0:00:09.9]} 28... Qg4 {[%clk 0:00:15.5]} 29.
Qf2 {[%clk 0:00:08.5]} 29... Nf5 {[%clk 0:00:09.5]} 30. Rxe7 {[%clk 0:00:08]}
30... Ncxe7 {[%clk 0:00:10.4]} 31. Be6+ {[%clk 0:00:07.3]} 31... Kb8 {[%clk
0:00:11]} 32. Ne5 {[%clk 0:00:07]} 32... Qe4 {[%clk 0:00:04.4]} 33. Nd7+ {[%clk
0:00:06.8]} 33... Ka8 {[%clk 0:00:04.2]} 34. Bxf5 {[%clk 0:00:07.4]} 34... Nxf5
{[%clk 0:00:02.9]} 35. Qxf5 {[%clk 0:00:08.3]} 35... Qd4+ {[%clk 0:00:03.1]} 36.
Qf2 {[%clk 0:00:08.1]} 36... Qxd7 {[%clk 0:00:03.5]} 37. Qf8+ {[%clk 0:00:08.3]}
37... Be8 {[%clk 0:00:03.9]} 38. Re1 {[%clk 0:00:07.4]} 38... Qd4+ {[%clk
0:00:04]} 39. Kh2 {[%clk 0:00:07.8]} 39... a6 {[%clk 0:00:04.2]} 40. Qxe8+
{[%clk 0:00:07.9]} 40... Ka7 {[%clk 0:00:04.9]} 41. Qe3 {[%clk 0:00:08.6]} 41...
Qxe3 {[%clk 0:00:04.3]} 42. Rxe3 {[%clk 0:00:09.5]} 1-0

[Event "Late-Titled-Tuesday-Blitz-March-26-2024"]
[Site "Chess.com"]
[Date "2024.03.26"]
[Round "9"]
[White "dasatcu90"]
[Black "RianKapriaga"]
[Result "0-1"]
[WhiteElo "2234"]
[BlackElo "2350"]
[TimeControl "180+1"]
[EndTime "15:45:17 PDT"]
[Termination "RianKapriaga won on time"]

1. d4 {[%clk 0:03:00.9]} 1... Nf6 {[%clk 0:02:58.3]} 2. Nf3 {[%clk 0:03:01.5]}
2... d5 {[%clk 0:02:54]} 3. e3 {[%clk 0:03:01.4]} 3... Bf5 {[%clk 0:02:50.1]} 4.
Bd3 {[%clk 0:03:00.7]} 4... e6 {[%clk 0:02:49.8]} 5. Bxf5 {[%clk 0:02:59.6]}
5... exf5 {[%clk 0:02:48.2]} 6. c4 {[%clk 0:03:00.5]} 6... c6 {[%clk 0:02:47]}
7. Qb3 {[%clk 0:02:56.8]} 7... Qb6 {[%clk 0:02:39.4]} 8. Nc3 {[%clk 0:02:53.8]}
8... dxc4 {[%clk 0:02:30.3]} 9. Qxc4 {[%clk 0:02:53]} 9... Nbd7 {[%clk
0:02:20.9]} 10. O-O {[%clk 0:02:49.8]} 10... Be7 {[%clk 0:02:19.6]} 11. b4
{[%clk 0:02:42.8]} 11... O-O {[%clk 0:02:17.6]} 12. Rb1 {[%clk 0:02:40.3]} 12...
a6 {[%clk 0:02:15.5]} 13. a4 {[%clk 0:02:16.4]} 13... Rac8 {[%clk 0:02:13.8]}
14. Bd2 {[%clk 0:02:05.6]} 14... Ne4 {[%clk 0:02:11.2]} 15. Rfd1 {[%clk
0:01:35.8]} 15... Ndf6 {[%clk 0:01:57.8]} 16. Be1 {[%clk 0:01:34.2]} 16... Nxc3
{[%clk 0:01:54.9]} 17. Qxc3 {[%clk 0:01:33.4]} 17... Nd5 {[%clk 0:01:54.1]} 18.
Qc4 {[%clk 0:01:20.2]} 18... Rfd8 {[%clk 0:01:49.4]} 19. Ne5 {[%clk 0:01:02.2]}
19... Bd6 {[%clk 0:01:46.8]} 20. Nd3 {[%clk 0:01:01]} 20... Qc7 {[%clk
0:01:37.7]} 21. b5 {[%clk 0:00:52.6]} 21... Bxh2+ {[%clk 0:01:31.6]} 22. Kh1
{[%clk 0:00:52.7]} 22... Bd6 {[%clk 0:01:19]} 23. bxa6 {[%clk 0:00:51.5]} 23...
bxa6 {[%clk 0:01:18.6]} 24. Rdc1 {[%clk 0:00:42.2]} 24... Qe7 {[%clk 0:01:15.9]}
25. Kg1 {[%clk 0:00:27.8]} 25... Qh4 {[%clk 0:01:10.3]} 26. f4 {[%clk
0:00:27.3]} 26... Qg4 {[%clk 0:01:00.7]} 27. Bf2 {[%clk 0:00:27.7]} 27... Be7
{[%clk 0:00:48.5]} 28. Ne5 {[%clk 0:00:28.1]} 28... Qh5 {[%clk 0:00:43.2]} 29.
Qxa6 {[%clk 0:00:26.4]} 29... Bh4 {[%clk 0:00:37.8]} 30. Nf3 {[%clk 0:00:22.9]}
30... Bxf2+ {[%clk 0:00:34.1]} 31. Kxf2 {[%clk 0:00:23.8]} 31... Qg6 {[%clk
0:00:18.9]} 32. Ne5 {[%clk 0:00:22.2]} 32... Qd6 {[%clk 0:00:12.9]} 33. Rxc6
{[%clk 0:00:20.2]} 33... Rxc6 {[%clk 0:00:12.6]} 34. Qxc6 {[%clk 0:00:21]} 34...
Qa3 {[%clk 0:00:12.5]} 35. Qc4 {[%clk 0:00:15.4]} 35... g6 {[%clk 0:00:10.6]}
36. Rc1 {[%clk 0:00:12.9]} 36... Qxe3+ {[%clk 0:00:09.9]} 37. Kf1 {[%clk
0:00:11.2]} 37... Nxf4 {[%clk 0:00:09.8]} 38. Qxf7+ {[%clk 0:00:09.8]} 38... Kh8
{[%clk 0:00:07.7]} 39. Qf6+ {[%clk 0:00:09.8]} 39... Kg8 {[%clk 0:00:08.1]} 40.
Qxd8+ {[%clk 0:00:10.1]} 40... Kg7 {[%clk 0:00:08.1]} 41. Rc7+ {[%clk
0:00:08.4]} 41... Kh6 {[%clk 0:00:08.5]} 42. Qh4+ {[%clk 0:00:08.2]} 42... Nh5
{[%clk 0:00:09.1]} 43. Nf7+ {[%clk 0:00:06.4]} 43... Kg7 {[%clk 0:00:08]} 44.
Ng5+ {[%clk 0:00:05.9]} 44... Kg8 {[%clk 0:00:06.6]} 0-1

[Event "Late-Titled-Tuesday-Blitz-March-26-2024"]
[Site "Chess.com"]
[Date "2024.03.26"]
[Round "9"]
[White "TheMagician"]
[Black "gorgeous1083"]
[Result "1-0"]
[WhiteElo "2273"]
[BlackElo "2061"]
[TimeControl "180+1"]
[EndTime "15:45:22 PDT"]
[Termination "TheMagician won on time"]

1. d4 {[%clk 0:02:55.2]} 1... Nf6 {[%clk 0:02:56.6]} 2. c4 {[%clk 0:02:54.9]}
2... e6 {[%clk 0:02:56.7]} 3. Nf3 {[%clk 0:02:53.9]} 3... d5 {[%clk 0:02:56.6]}
4. g3 {[%clk 0:02:53.6]} 4... b6 {[%clk 0:02:52.8]} 5. Bg2 {[%clk 0:02:52.6]}
5... Bb7 {[%clk 0:02:53.2]} 6. Ne5 {[%clk 0:02:50.3]} 6... Bb4+ {[%clk 0:02:50]}
7. Bd2 {[%clk 0:02:47.3]} 7... Be7 {[%clk 0:02:49.4]} 8. Bg5 {[%clk 0:02:32.3]}
8... O-O {[%clk 0:02:44.7]} 9. Nc3 {[%clk 0:02:30.4]} 9... c6 {[%clk 0:02:39.2]}
10. O-O {[%clk 0:02:21.1]} 10... Nfd7 {[%clk 0:02:37.5]} 11. Nxd7 {[%clk
0:02:12.7]} 11... Nxd7 {[%clk 0:02:35.9]} 12. Bxe7 {[%clk 0:02:12.5]} 12... Qxe7
{[%clk 0:02:35.5]} 13. cxd5 {[%clk 0:02:12.2]} 13... cxd5 {[%clk 0:02:29.9]} 14.
a3 {[%clk 0:02:04.5]} 14... a5 {[%clk 0:02:27.6]} 15. Qd2 {[%clk 0:01:58.2]}
15... Ba6 {[%clk 0:02:22.7]} 16. Rfb1 {[%clk 0:01:55.2]} 16... Rfc8 {[%clk
0:02:08.9]} 17. e3 {[%clk 0:01:38]} 17... Bc4 {[%clk 0:01:49.6]} 18. b3 {[%clk
0:01:36.5]} 18... Ba6 {[%clk 0:01:48.4]} 19. b4 {[%clk 0:01:27.2]} 19... axb4
{[%clk 0:01:47]} 20. Rxb4 {[%clk 0:01:26.4]} 20... Bc4 {[%clk 0:01:42.5]} 21.
Qb2 {[%clk 0:01:24.2]} 21... Ra5 {[%clk 0:01:27.3]} 22. a4 {[%clk 0:01:22.5]}
22... Rca8 {[%clk 0:01:20]} 23. Rxc4 {[%clk 0:01:22.2]} 23... dxc4 {[%clk
0:01:14.1]} 24. Bxa8 {[%clk 0:01:21.8]} 24... Rxa8 {[%clk 0:01:14.7]} 25. Qb5
{[%clk 0:01:19.1]} 25... Rc8 {[%clk 0:01:06.5]} 26. Rb1 {[%clk 0:01:17.1]} 26...
Qd6 {[%clk 0:01:05]} 27. Qb4 {[%clk 0:01:11]} 27... Qc6 {[%clk 0:00:56.9]} 28.
Rc1 {[%clk 0:01:05.7]} 28... Nf6 {[%clk 0:00:53.6]} 29. Qb5 {[%clk 0:00:58.1]}
29... Nd5 {[%clk 0:00:48.8]} 30. Qxc6 {[%clk 0:00:50.5]} 30... Rxc6 {[%clk
0:00:49.7]} 31. Kf1 {[%clk 0:00:39.3]} 31... Kf8 {[%clk 0:00:43.3]} 32. Ke2
{[%clk 0:00:35.4]} 32... Ke7 {[%clk 0:00:41.3]} 33. Kd2 {[%clk 0:00:32.7]} 33...
Kd7 {[%clk 0:00:40.7]} 34. Rb1 {[%clk 0:00:31.4]} 34... Kc7 {[%clk 0:00:36.4]}
35. Rb5 {[%clk 0:00:28.3]} 35... Rd6 {[%clk 0:00:20.5]} 36. e4 {[%clk
0:00:28.2]} 36... Nxc3 {[%clk 0:00:17]} 37. Kxc3 {[%clk 0:00:28]} 37... Rc6
{[%clk 0:00:14.3]} 38. Rb4 {[%clk 0:00:27.3]} 38... Kd6 {[%clk 0:00:11.1]} 39.
Rxc4 {[%clk 0:00:27.2]} 39... Rxc4+ {[%clk 0:00:07]} 40. Kxc4 {[%clk 0:00:27.6]}
40... Kc6 {[%clk 0:00:07.1]} 41. d5+ {[%clk 0:00:23.8]} 41... exd5+ {[%clk
0:00:07.3]} 42. exd5+ {[%clk 0:00:23.2]} 42... Kd6 {[%clk 0:00:07.8]} 43. Kd4
{[%clk 0:00:23.3]} 43... f5 {[%clk 0:00:07.2]} 44. f4 {[%clk 0:00:18.7]} 44...
h6 {[%clk 0:00:04.8]} 45. h3 {[%clk 0:00:18.2]} 45... h5 {[%clk 0:00:04.7]} 46.
Kc4 {[%clk 0:00:16.3]} 46... Kc7 {[%clk 0:00:03.6]} 47. Kb5 {[%clk 0:00:15.3]}
47... Kb7 {[%clk 0:00:02]} 48. d6 {[%clk 0:00:15.6]} 48... g6 {[%clk 0:00:01.3]}
49. d7 {[%clk 0:00:14.1]} 49... Kc7 {[%clk 0:00:01.4]} 50. h4 {[%clk 0:00:13.7]}
50... Kxd7 {[%clk 0:00:01.4]} 51. Kxb6 {[%clk 0:00:14.1]} 1-0

[Event "Late-Titled-Tuesday-Blitz-March-26-2024"]
[Site "Chess.com"]
[Date "2024.03.26"]
[Round "9"]
[White "PapaieDudu"]
[Black "rhwr"]
[Result "1-0"]
[WhiteElo "2435"]
[BlackElo "2305"]
[TimeControl "180+1"]
[EndTime "15:45:28 PDT"]
[Termination "PapaieDudu won on time"]

1. Nf3 {[%clk 0:03:00.9]} 1... c5 {[%clk 0:02:59]} 2. e4 {[%clk 0:03:01]} 2...
d6 {[%clk 0:02:58.7]} 3. d4 {[%clk 0:03:01.6]} 3... cxd4 {[%clk 0:02:59.4]} 4.
Nxd4 {[%clk 0:03:02.5]} 4... Nf6 {[%clk 0:03:00]} 5. Nc3 {[%clk 0:03:03.2]} 5...
e5 {[%clk 0:03:00.8]} 6. Nb3 {[%clk 0:03:03.3]} 6... Be6 {[%clk 0:03:00.1]} 7.
f3 {[%clk 0:03:02.8]} 7... Be7 {[%clk 0:03:00.6]} 8. Be3 {[%clk 0:03:03.5]} 8...
O-O {[%clk 0:03:00.9]} 9. Qd2 {[%clk 0:03:04.2]} 9... Nbd7 {[%clk 0:03:00.7]}
10. O-O-O {[%clk 0:03:04.9]} 10... a6 {[%clk 0:02:59.8]} 11. g4 {[%clk
0:03:05.4]} 11... b5 {[%clk 0:02:54.5]} 12. g5 {[%clk 0:03:05]} 12... Ne8 {[%clk
0:02:54.5]} 13. h4 {[%clk 0:03:04.2]} 13... Nb6 {[%clk 0:02:48.2]} 14. Nd5
{[%clk 0:02:57]} 14... Nxd5 {[%clk 0:02:45]} 15. exd5 {[%clk 0:02:57.6]} 15...
Bf5 {[%clk 0:02:45.4]} 16. Na5 {[%clk 0:02:50.5]} 16... Rc8 {[%clk 0:02:34.4]}
17. Nc6 {[%clk 0:02:50.5]} 17... Qc7 {[%clk 0:02:23.3]} 18. Kb1 {[%clk
0:02:32.4]} 18... g6 {[%clk 0:02:17.8]} 19. h5 {[%clk 0:02:28.8]} 19... gxh5
{[%clk 0:02:09.6]} 20. Rxh5 {[%clk 0:02:27.6]} 20... Ng7 {[%clk 0:02:09.3]} 21.
Rh6 {[%clk 0:02:14.2]} 21... Bg6 {[%clk 0:02:09.2]} 22. Bd3 {[%clk 0:01:32.5]}
22... Nf5 {[%clk 0:02:08.4]} 23. Bb6 {[%clk 0:01:08.8]} 23... Qb7 {[%clk
0:01:36.7]} 24. Nxe7+ {[%clk 0:00:28.7]} 24... Qxe7 {[%clk 0:01:35.7]} 25. Rh2
{[%clk 0:00:15.9]} 25... Qb7 {[%clk 0:01:31.8]} 26. Ba5 {[%clk 0:00:06.8]} 26...
Qxd5 {[%clk 0:01:28]} 27. Bxf5 {[%clk 0:00:03.4]} 27... Qxd2 {[%clk 0:01:26.9]}
28. Rdxd2 {[%clk 0:00:03.7]} 28... Bxf5 {[%clk 0:01:26.6]} 29. Rxd6 {[%clk
0:00:04.5]} 29... Rc4 {[%clk 0:01:16.5]} 30. Bc3 {[%clk 0:00:04.3]} 30... Re8
{[%clk 0:01:07]} 31. a3 {[%clk 0:00:04.4]} 31... Rf4 {[%clk 0:00:53.9]} 32. Re2
{[%clk 0:00:04.7]} 32... Rxf3 {[%clk 0:00:52.4]} 33. Bxe5 {[%clk 0:00:02.7]}
33... Rf1+ {[%clk 0:00:43.7]} 34. Ka2 {[%clk 0:00:02.4]} 34... Be6+ {[%clk
0:00:42.9]} 35. b3 {[%clk 0:00:02.9]} 35... Rc8 {[%clk 0:00:41.1]} 36. Bf6
{[%clk 0:00:02.3]} 36... h6 {[%clk 0:00:39.3]} 37. Rdd2 {[%clk 0:00:02.2]} 37...
hxg5 {[%clk 0:00:37.2]} 38. Bxg5 {[%clk 0:00:03.1]} 38... Rg1 {[%clk 0:00:33.2]}
39. Bf6 {[%clk 0:00:03.3]} 39... Rg6 {[%clk 0:00:30.6]} 40. Be5 {[%clk
0:00:02.9]} 40... f5 {[%clk 0:00:30]} 41. Rh2 {[%clk 0:00:03.2]} 41... Kf8
{[%clk 0:00:19.7]} 42. Rd6 {[%clk 0:00:03.6]} 42... Re8 {[%clk 0:00:03.7]} 43.
Kb2 {[%clk 0:00:03.7]} 43... a5 {[%clk 0:00:02.8]} 44. Rb6 {[%clk 0:00:03.5]}
44... b4 {[%clk 0:00:02.6]} 45. axb4 {[%clk 0:00:02.6]} 45... axb4 {[%clk
0:00:03.5]} 46. Bd6+ {[%clk 0:00:03.2]} 46... Kf7 {[%clk 0:00:03.2]} 47. Bxb4
{[%clk 0:00:03.6]} 47... f4 {[%clk 0:00:02.5]} 48. Bc3 {[%clk 0:00:03.5]} 48...
Reg8 {[%clk 0:00:01.2]} 49. Rf2 {[%clk 0:00:03.6]} 1-0

[Event "Late-Titled-Tuesday-Blitz-March-26-2024"]
[Site "Chess.com"]
[Date "2024.03.26"]
[Round "9"]
[White "GarciaIsaac"]
[Black "VD_coach"]
[Result "1-0"]
[WhiteElo "2643"]
[BlackElo "2502"]
[TimeControl "180+1"]
[EndTime "15:45:32 PDT"]
[Termination "GarciaIsaac won on time"]

1. d4 {[%clk 0:03:00.9]} 1... Nf6 {[%clk 0:02:59.6]} 2. Bg5 {[%clk 0:03:00.4]}
2... Ne4 {[%clk 0:02:58]} 3. Bf4 {[%clk 0:03:00]} 3... c5 {[%clk 0:02:57.7]} 4.
f3 {[%clk 0:02:57.5]} 4... Qa5+ {[%clk 0:02:57.7]} 5. c3 {[%clk 0:02:56.8]} 5...
Nf6 {[%clk 0:02:55.8]} 6. d5 {[%clk 0:02:54.6]} 6... d6 {[%clk 0:02:53.3]} 7. e4
{[%clk 0:02:53.6]} 7... g6 {[%clk 0:02:53.3]} 8. Na3 {[%clk 0:02:49.8]} 8... Bg7
{[%clk 0:02:52.7]} 9. Nc4 {[%clk 0:02:48.1]} 9... Qd8 {[%clk 0:02:52]} 10. a4
{[%clk 0:02:47.9]} 10... O-O {[%clk 0:02:51.4]} 11. Qd2 {[%clk 0:02:44.4]} 11...
b6 {[%clk 0:02:48.7]} 12. Ne2 {[%clk 0:02:41.5]} 12... Ba6 {[%clk 0:02:43.2]}
13. Ng3 {[%clk 0:02:41.4]} 13... Qc8 {[%clk 0:02:11.4]} 14. h4 {[%clk
0:02:38.4]} 14... h5 {[%clk 0:02:10.7]} 15. Bh6 {[%clk 0:02:17.6]} 15... Nbd7
{[%clk 0:01:57.6]} 16. Qg5 {[%clk 0:01:53.9]} 16... Nh7 {[%clk 0:01:41.9]} 17.
Qf4 {[%clk 0:01:50.6]} 17... Bxc4 {[%clk 0:01:38.8]} 18. Bxg7 {[%clk 0:01:40.7]}
18... Bxf1 {[%clk 0:00:54.8]} 19. Bxf8 {[%clk 0:01:33]} 19... Bxg2 {[%clk
0:00:48]} 20. Rg1 {[%clk 0:01:24.9]} 20... Ne5 {[%clk 0:00:43.1]} 21. Kd2 {[%clk
0:01:13.9]} 21... Nxf3+ {[%clk 0:00:27.7]} 22. Kc2 {[%clk 0:01:12.2]} 22... Nxf8
{[%clk 0:00:23.7]} 23. Rxg2 {[%clk 0:01:07.5]} 23... Qg4 {[%clk 0:00:23.9]} 24.
Qxg4 {[%clk 0:00:43.6]} 24... hxg4 {[%clk 0:00:23.4]} 25. Nf1 {[%clk 0:00:43.8]}
25... Ne5 {[%clk 0:00:19.8]} 26. Ne3 {[%clk 0:00:42.2]} 26... Kg7 {[%clk
0:00:17.6]} 27. Nxg4 {[%clk 0:00:40.7]} 27... Nfd7 {[%clk 0:00:17.3]} 28. Rh1
{[%clk 0:00:38.4]} 28... Rh8 {[%clk 0:00:16.6]} 29. h5 {[%clk 0:00:38.4]} 29...
Nxg4 {[%clk 0:00:16.6]} 30. Rxg4 {[%clk 0:00:36.7]} 30... Nf6 {[%clk 0:00:16.9]}
31. h6+ {[%clk 0:00:27.4]} 31... Rxh6 {[%clk 0:00:17]} 32. Rxh6 {[%clk
0:00:26.1]} 32... Kxh6 {[%clk 0:00:17.9]} 33. Rf4 {[%clk 0:00:22.4]} 33... Kg5
{[%clk 0:00:17.5]} 34. Rf1 {[%clk 0:00:21.7]} 34... Kg4 {[%clk 0:00:17.7]} 35.
Kd3 {[%clk 0:00:21.6]} 35... g5 {[%clk 0:00:17.7]} 36. Ke3 {[%clk 0:00:21.3]}
36... Kh5 {[%clk 0:00:16.2]} 37. Rh1+ {[%clk 0:00:21.2]} 37... Kg6 {[%clk
0:00:16.4]} 38. Rg1 {[%clk 0:00:21.1]} 38... g4 {[%clk 0:00:16]} 39. Kf4 {[%clk
0:00:20.6]} 39... e5+ {[%clk 0:00:16.1]} 40. dxe6 {[%clk 0:00:21.2]} 40... fxe6
{[%clk 0:00:16.4]} 41. e5 {[%clk 0:00:20]} 41... dxe5+ {[%clk 0:00:14.5]} 42.
Kxe5 {[%clk 0:00:20.9]} 42... Kg5 {[%clk 0:00:15.1]} 43. Kxe6 {[%clk 0:00:18.3]}
43... Ne4 {[%clk 0:00:15.3]} 44. Kd5 {[%clk 0:00:15.2]} 44... Nd2 {[%clk
0:00:13.3]} 45. Kc6 {[%clk 0:00:13.5]} 45... Kf4 {[%clk 0:00:11.9]} 46. Kb7
{[%clk 0:00:13.1]} 46... Nf3 {[%clk 0:00:10.8]} 47. Ra1 {[%clk 0:00:11.5]} 47...
g3 {[%clk 0:00:09.6]} 48. Kxa7 {[%clk 0:00:11.5]} 48... g2 {[%clk 0:00:08.7]}
49. Kxb6 {[%clk 0:00:11.6]} 49... Kg3 {[%clk 0:00:08.5]} 50. a5 {[%clk
0:00:11.2]} 50... Kf2 {[%clk 0:00:08.7]} 51. Rd1 {[%clk 0:00:07.4]} 51... Ke2
{[%clk 0:00:08.3]} 52. Rc1 {[%clk 0:00:06.4]} 52... Nd2 {[%clk 0:00:07.7]} 53.
Rg1 {[%clk 0:00:05.6]} 53... Nc4+ {[%clk 0:00:07.3]} 54. Kxc5 {[%clk 0:00:04.8]}
1-0